bitfinex/quotes_BTCUSD_20250515
["timestamp","ask_amount","ask_price","bid_price","bid_amount"]
[1747307524495,0.21549468,102090.0,102080.0,0.23051694]
[1747307524696,0.22529034,102090.0,102080.0,0.015]
[1747307524898,0.21549564,102090.0,102080.0,0.015]
[1747307525110,0.21549564,102090.0,102080.0,0.03762198]
[1747307525327,0.21549564,102090.0,102080.0,0.09677979]
[1747307525703,0.20570075,102090.0,102080.0,0.09877979]
[1747307526090,0.20570075,102090.0,102080.0,0.29470455]
[1747307526297,0.21549554,102090.0,102080.0,0.09877979]
[1747307526565,0.20570065,102090.0,102080.0,0.09877979]
[1747307526778,0.20570065,102090.0,102080.0,0.03962198]
[1747307527483,0.20570065,102090.0,102080.0,0.0335]
[1747307528520,0.83296512,102100.0,102080.0,0.59513821]
[1747307528738,0.83296512,102100.0,102090.0,0.0314]
[1747307528739,0.20484512,102100.0,102090.0,0.0314]
[1747307528937,0.20484512,102100.0,102090.0,0.12266915]
[1747307529261,0.19590359,102100.0,102090.0,0.12266915]
[1747307530006,0.19595209,102100.0,102090.0,0.0314]
[1747307530375,0.40079209,102100.0,102090.0,0.0314]
[1747307533185,0.40079209,102100.0,102090.0,0.03752097]
[1747307535179,0.40079209,102100.0,102090.0,0.0314]
[1747307536305,0.40079209,102100.0,102090.0,0.0158]
[1747307536533,0.20570065,102090.0,102080.0,0.3726]
[1747307536721,0.20570065,102090.0,102080.0,0.4341501]
[1747307537094,0.20570065,102090.0,102080.0,0.4402713]
[1747307537298,0.20570065,102090.0,102080.0,0.3787212]
[1747307537842,0.20570065,102090.0,102080.0,0.57464596]
[1747307537843,0.21549564,102090.0,102080.0,0.57464596]
[1747307538010,0.20570065,102090.0,102080.0,0.3807212]
[1747307538784,0.19590557,102090.0,102080.0,0.3807212]
[1747307539207,0.19590557,102090.0,102080.0,0.3827212]
[1747307539412,0.19590557,102090.0,102080.0,0.44967219]
[1747307539897,0.19590557,102090.0,102080.0,0.65539318]
[1747307540048,0.19590557,102090.0,102080.0,0.44967219]
[1747307541358,0.19590557,102090.0,102080.0,0.3827212]
[1747307543392,0.19590557,102090.0,102080.0,0.588442]
[1747307543641,0.19590557,102090.0,102080.0,0.58844219]
[1747307543836,0.19590557,102090.0,102080.0,0.59823823]
[1747307544329,0.20493339,102100.0,102090.0,0.23710075]
[1747307544551,0.63380182,102100.0,102090.0,0.11167379]
[1747307544791,0.63380182,102100.0,102090.0,0.11779499]
[1747307545011,0.6240077,102100.0,102090.0,0.11779499]
[1747307546066,0.6240077,102100.0,102090.0,0.0061212]
[1747307546303,0.7213171,102100.0,102090.0,0.0061212]
[1747307546523,0.3120371,102100.0,102090.0,0.0216212]
[1747307546762,0.7212771,102100.0,102090.0,0.0216212]
[1747307547203,0.7376771,102100.0,102090.0,0.0061212]
[1747307547460,0.7538771,102100.0,102090.0,0.0061212]
[1747307548081,0.7376771,102100.0,102090.0,0.0061212]
[1747307550249,0.73768851,102100.0,102090.0,0.0061212]
[1747307550870,0.75358851,102100.0,102090.0,0.0061212]
[1747307551850,0.72116851,102100.0,102090.0,0.0061212]
[1747307552071,0.31204851,102100.0,102090.0,0.0211212]
[1747307552257,0.72116851,102100.0,102090.0,0.0361212]
[1747307552678,0.72108221,102100.0,102090.0,0.0361212]
[1747307553532,0.72108221,102100.0,102090.0,0.0211212]
[1747307553689,0.72108221,102100.0,102090.0,0.0061212]
[1747307553690,0.75348221,102100.0,102090.0,0.0061212]
[1747307553893,0.85079161,102100.0,102090.0,0.0061212]
[1747307554317,0.20570065,102090.0,102080.0,0.002]
[1747307554510,0.30301005,102090.0,102080.0,0.002]
[1747307554713,0.30301005,102090.0,102080.0,0.00812174]
[1747307555311,0.50729005,102090.0,102080.0,0.00812174]
[1747307555692,0.50729005,102090.0,102080.0,0.01012174]
[1747307556589,0.52259005,102090.0,102080.0,0.01012174]
[1747307556792,0.53889005,102090.0,102080.0,0.01012174]
[1747307557036,0.52259005,102090.0,102080.0,0.01012174]
[1747307557183,0.31831005,102090.0,102080.0,0.01012174]
[1747307557385,0.72679005,102090.0,102080.0,0.01012174]
[1747307560373,0.83569266,102090.0,102080.0,0.01012174]
[1747307560945,0.84080768,102090.0,102080.0,0.01012174]
[1747307561254,0.84080768,102090.0,102080.0,0.002]
[1747307561677,0.84080768,102090.0,102060.0,0.36182272]
[1747307561678,0.21553767,102070.0,102060.0,0.36182272]
[1747307561895,0.62397767,102070.0,102060.0,0.37832272]
[1747307562091,0.62397767,102070.0,102060.0,0.47563212]
[1747307562838,0.62397767,102070.0,102060.0,0.45913212]
[1747307563038,0.62397767,102070.0,102060.0,0.46113212]
[1747307563363,0.72128707,102070.0,102060.0,0.00812272]
[1747307563570,0.75208707,102070.0,102060.0,0.00812272]
[1747307563768,0.73698707,102070.0,102060.0,0.00812272]
[1747307565054,0.73698707,102070.0,102060.0,0.01012272]
[1747307566051,0.75208707,102070.0,102060.0,0.01012272]
[1747307566463,0.73698707,102070.0,102060.0,0.01012272]
[1747307568824,0.73698707,102070.0,102060.0,0.004]
[1747307571756,0.84969647,102070.0,102060.0,0.004]
[1747307572206,0.75238707,102070.0,102060.0,0.004]
[1747307572830,0.34394707,102070.0,102060.0,0.004]
[1747307573036,0.75218707,102070.0,102060.0,0.004]
[1747307573774,0.73678707,102070.0,102060.0,0.004]
[1747307574794,0.32854707,102070.0,102060.0,0.004]
[1747307574999,0.73678707,102070.0,102060.0,0.004]
[1747307577577,0.72108707,102070.0,102060.0,0.004]
[1747307582009,0.72092707,102070.0,102060.0,0.004]
[1747307585181,0.73752707,102070.0,102060.0,0.004]
[1747307585575,0.72092707,102070.0,102060.0,0.004]
[1747307585796,0.72092707,102070.0,102060.0,0.01012326]
[1747307587397,0.73672707,102070.0,102060.0,0.01012326]
[1747307587609,0.84973647,102070.0,102060.0,0.004]
[1747307588887,0.75242707,102070.0,102060.0,0.004]
[1747307592386,0.75242707,102070.0,102060.0,0.01012347]
[1747307594657,0.75242707,102070.0,102060.0,0.004]
[1747307596725,0.75242707,102070.0,102060.0,0.01012353]
[1747307597149,0.75242707,102070.0,102060.0,0.004]
[1747307597988,0.73672707,102070.0,102060.0,0.004]
[1747307598244,0.73576707,102070.0,102060.0,0.01012354]
[1747307598676,0.73572707,102070.0,102060.0,0.01012354]
[1747307602991,0.84953647,102070.0,102060.0,0.01012354]
[1747307604064,0.44245647,102070.0,102060.0,0.01012354]
[1747307604254,0.84941647,102070.0,102060.0,0.01012354]
[1747307606424,0.75210707,102070.0,102060.0,0.01012354]
[1747307610141,0.73560707,102070.0,102060.0,0.01012354]
[1747307622814,0.75210707,102070.0,102060.0,0.01012354]
[1747307623185,0.34514707,102070.0,102060.0,0.01012354]
[1747307623403,0.75098707,102070.0,102060.0,0.01012354]
[1747307623610,0.84829647,102070.0,102060.0,0.01012354]
[1747307626199,0.9122322,102070.0,102060.0,0.01012354]
[1747307626601,0.9122322,102070.0,102060.0,0.004]
[1747307627643,0.93977257,102070.0,102060.0,0.004]
[1747307628050,1.27977257,102070.0,102060.0,0.002]
[1747307628679,0.20576111,102060.0,102050.0,15.0]
[1747307628888,0.37533556,102060.0,102050.0,15.0]
[1747307629093,0.43415556,102060.0,102050.0,15.0]
[1747307629835,0.43420402,102060.0,102050.0,15.0]
[1747307634697,0.33531897,102060.0,102050.0,15.0]
[1747307635074,0.74087897,102060.0,102050.0,15.0]
[1747307641387,0.72485897,102060.0,102050.0,15.0]
[1747307641585,0.31941897,102060.0,102050.0,15.0]
[1747307641823,0.72485897,102060.0,102050.0,15.0]
[1747307642336,0.82216837,102060.0,102050.0,15.0]
[1747307642745,0.83766837,102060.0,102050.0,15.0]
[1747307645094,1.26098837,102060.0,102050.0,15.0]
[1747307645796,1.26098837,102060.0,102050.0,15.497939]
[1747307648577,1.24548837,102060.0,102050.0,15.497939]
[1747307649200,0.72643897,102060.0,102050.0,15.529139]
[1747307649763,1.13087897,102060.0,102050.0,15.529139]
[1747307657688,0.72643897,102060.0,102050.0,15.529139]
[1747307657900,1.13067897,102060.0,102050.0,15.529139]
[1747307659484,1.13067897,102060.0,102050.0,15.497939]
[1747307659677,1.22798837,102060.0,102050.0,15.497939]
[1747307661444,1.24428837,102060.0,102050.0,15.497939]
[1747307662551,0.72643897,102060.0,102050.0,15.514039]
[1747307662826,1.13051897,102060.0,102050.0,15.514039]
[1747307663230,0.72643897,102060.0,102050.0,15.530439]
[1747307663441,1.13047897,102060.0,102050.0,15.530439]
[1747307664921,1.13022098,102060.0,102050.0,15.530439]
[1747307667354,1.13014098,102060.0,102050.0,15.530439]
[1747307667779,1.13010098,102060.0,102050.0,15.530439]
[1747307668421,1.22741038,102060.0,102050.0,15.530439]
[1747307668841,1.13010098,102060.0,102050.0,15.530439]
[1747307669046,1.13010098,102060.0,102050.0,15.514039]
[1747307669662,1.13010098,102060.0,102050.0,15.529939]
[1747307673697,1.13010098,102060.0,102050.0,15.514039]
[1747307675056,0.72618098,102060.0,102050.0,15.529539]
[1747307675269,0.72618098,102060.0,102050.0,15.6268484]
[1747307675507,1.12994098,102060.0,102050.0,15.63297247]
[1747307677952,0.62887158,102060.0,102050.0,15.63297247]
[1747307678198,1.03179158,102060.0,102050.0,15.63297247]
[1747307683283,1.03179158,102060.0,102050.0,15.63297219]
[1747307683492,1.04142944,102060.0,102050.0,16.01377235]
[1747307683724,1.03163158,102060.0,102050.0,15.81778999]
[1747307683942,1.03163158,102060.0,102050.0,15.63297219]
[1747307685003,1.03163158,102060.0,102050.0,15.53566279]
[1747307689318,0.62887158,102060.0,102050.0,15.53566279]
[1747307689504,1.03151158,102060.0,102050.0,15.53566279]
[1747307690349,0.20555158,102060.0,102050.0,15.7512429]
[1747307690565,0.01964371,102060.0,102050.0,16.39770939]
[1747307690825,0.00984594,102060.0,102050.0,16.39770939]
[1747307691047,4.846e-05,102060.0,102050.0,16.49501879]
[1747307691266,4.846e-05,102060.0,102050.0,16.49501781]
[1747307691700,0.00984575,102060.0,102050.0,16.49501781]
[1747307692139,0.00984575,102060.0,102050.0,16.49801781]
[1747307692553,4.846e-05,102060.0,102050.0,16.49801781]
[1747307693024,4.846e-05,102060.0,102050.0,16.50201781]
[1747307693416,0.00984584,102060.0,102050.0,16.50201781]
[1747307694358,4.846e-05,102060.0,102050.0,16.50201781]
[1747307694612,0.00984575,102060.0,102050.0,16.50201781]
[1747307695214,0.01964313,102060.0,102050.0,16.50201781]
[1747307696553,0.02944061,102060.0,102050.0,16.50201781]
[1747307696778,0.01964313,102060.0,102050.0,16.31720001]
[1747307697026,0.01964313,102060.0,102050.0,16.50201781]
[1747307697296,0.00984575,102060.0,102050.0,16.50201781]
[1747307697964,0.01964323,102060.0,102050.0,16.50201781]
[1747307698428,4.846e-05,102060.0,102050.0,16.68683561]
[1747307699121,4.846e-05,102060.0,102050.0,17.09613561]
[1747307700013,4.846e-05,102060.0,102050.0,17.09213561]
[1747307700212,4.846e-05,102060.0,102050.0,17.09713561]
[1747307700421,4.846e-05,102060.0,102050.0,17.09413561]
[1747307700640,4.846e-05,102060.0,102050.0,16.71950001]
[1747307700867,0.01964333,102060.0,102050.0,16.90431781]
[1747307701096,0.01964333,102060.0,102050.0,16.90931781]
[1747307701517,0.00984575,102060.0,102050.0,16.90931781]
[1747307701729,0.01964333,102060.0,102050.0,16.90931781]
[1747307701944,0.01964323,102060.0,102050.0,16.90931781]
[1747307702288,0.01964323,102060.0,102050.0,16.91331717]
[1747307702721,0.03923886,102060.0,102050.0,16.62718997]
[1747307702929,0.21560724,102060.0,102050.0,16.04727057]
[1747307703142,0.21560724,102060.0,102050.0,16.2756496]
[1747307703343,0.21560724,102060.0,102050.0,16.58055204]
[1747307703565,0.20580957,102060.0,102050.0,16.01867057]
[1747307703769,0.20580957,102060.0,102050.0,16.22445204]
[1747307703980,0.20580957,102060.0,102050.0,16.23035293]
[1747307704186,0.20580957,102060.0,102050.0,16.58015204]
[1747307704577,0.20580957,102060.0,102050.0,16.58995106]
[1747307704813,0.20580957,102060.0,102050.0,16.18065106]
[1747307705041,0.20580957,102060.0,102050.0,15.97486968]
[1747307705265,0.19601161,102060.0,102050.0,16.17075204]
[1747307705482,0.19601161,102060.0,102050.0,15.94437057]
[1747307705708,0.19601161,102060.0,102050.0,16.14035293]
[1747307705922,0.19601161,102060.0,102050.0,16.14235293]
[1747307706160,0.19601161,102060.0,102050.0,16.13935293]
[1747307706383,0.19601161,102060.0,102050.0,16.14915281]
[1747307706834,0.19601161,102060.0,102050.0,16.1511528]
[1747307707278,0.19601161,102060.0,102050.0,16.18102781]
[1747307707502,0.19601161,102060.0,102050.0,16.18715074]
[1747307707737,0.19601161,102060.0,102050.0,16.20674811]
[1747307707984,0.00984594,102060.0,102050.0,16.6160175]
[1747307708192,0.01964361,102060.0,102050.0,16.6160175]
[1747307708659,0.01964352,102060.0,102050.0,16.6160175]
[1747307708834,0.02944129,102060.0,102050.0,16.6160175]
[1747307709644,0.03923925,102060.0,102050.0,16.6160175]
[1747307709858,0.03923925,102060.0,102050.0,16.33439766]
[1747307710065,0.02944129,102060.0,102050.0,16.6160175]
[1747307710266,0.03923925,102060.0,102050.0,16.6160175]
[1747307711294,0.24500046,102060.0,102050.0,16.6160175]
[1747307711496,0.21560763,102060.0,102050.0,15.95991215]
[1747307711721,0.23120763,102060.0,102050.0,15.9453713]
[1747307713197,0.21560763,102060.0,102050.0,15.9453713]
[1747307715553,0.21560763,102060.0,102050.0,16.14135366]
[1747307715761,0.21560763,102060.0,102050.0,16.15115277]
[1747307715973,0.20580967,102060.0,102050.0,16.15115277]
[1747307717215,0.20580967,102060.0,102050.0,16.1609516]
[1747307717422,0.20580967,102060.0,102050.0,16.18645033]
[1747307717671,0.20580967,102060.0,102050.0,16.1766516]
[1747307717820,0.20580967,102060.0,102050.0,16.1609516]
[1747307718015,0.20580967,102060.0,102050.0,16.16095179]
[1747307718215,0.20580967,102060.0,102050.0,16.17075071]
[1747307718645,0.20580967,102060.0,102050.0,16.15115277]
[1747307718853,0.22230967,102060.0,102050.0,16.15115277]
[1747307719798,0.21251161,102060.0,102050.0,15.9453713]
[1747307720035,0.21251161,102060.0,102050.0,16.15115277]
[1747307721091,0.21251161,102060.0,102050.0,15.95517041]
[1747307722163,0.21251161,102060.0,102050.0,15.9453713]
[1747307723791,0.22881161,102060.0,102050.0,15.8480619]
[1747307724210,0.32612101,102060.0,102050.0,15.8480619]
[1747307724909,0.21251161,102060.0,102050.0,15.8480619]
[1747307725101,0.19601161,102060.0,102050.0,15.8480619]
[1747307725313,4.846e-05,102060.0,102050.0,16.46806969]
[1747307725521,0.21560705,102060.0,102050.0,16.46437252]
[1747307725726,0.42608453,102060.0,102050.0,16.47417125]
[1747307725927,0.43588268,102060.0,102050.0,16.19255151]
[1747307726142,0.43588268,102060.0,102050.0,16.18275268]
[1747307726356,0.43588268,102060.0,102050.0,16.1925516]
[1747307726556,0.23520268,102060.0,102050.0,16.1925516]
[1747307726939,0.2254052,102060.0,102050.0,16.18275277]
[1747307727148,0.2254052,102060.0,102050.0,16.19255179]
[1747307727570,0.2254052,102060.0,102050.0,16.18275277]
[1747307728147,0.2254052,102060.0,102050.0,16.19255179]
[1747307728356,0.2254052,102060.0,102050.0,16.18275277]
[1747307728781,0.2254052,102060.0,102050.0,16.16685277]
[1747307729040,0.2254052,102060.0,102050.0,15.98066943]
[1747307729257,0.2254052,102060.0,102050.0,15.97087041]
[1747307729477,0.2254052,102060.0,102050.0,15.9610713]
[1747307729716,0.00984575,102060.0,102050.0,16.48801229]
[1747307729936,0.0294409,102060.0,102050.0,16.50760946]
[1747307730177,0.23520182,102060.0,102050.0,16.50760956]
[1747307730397,0.24499988,102060.0,102050.0,16.50760965]
[1747307730574,0.23520173,102060.0,102050.0,16.50760965]
[1747307730822,0.24499979,102060.0,102050.0,16.49781102]
[1747307731042,0.23520173,102060.0,102050.0,16.49781102]
[1747307731260,0.24499969,102060.0,102050.0,16.49781102]
[1747307731549,0.24500046,102060.0,102050.0,16.38136466]
[1747307731761,0.23520298,102060.0,102050.0,16.39116349]
[1747307732541,0.23520298,102060.0,102050.0,16.39116358]
[1747307732748,0.23520298,102060.0,102050.0,16.40096241]
[1747307733586,0.23520298,102060.0,102050.0,16.47816477]
[1747307733803,0.2254054,102060.0,102050.0,16.21619156]
[1747307734475,0.2254054,102060.0,102050.0,16.20639264]
[1747307735601,0.2254054,102060.0,102050.0,16.48796379]
[1747307735941,0.2254054,102060.0,102050.0,16.46296477]
[1747307736143,0.21560763,102060.0,102050.0,16.47946477]
[1747307736355,0.21560724,102060.0,102050.0,16.47946477]
[1747307736586,0.2254053,102060.0,102050.0,16.48926379]
[1747307736990,0.2254053,102060.0,102050.0,16.49906252]
[1747307737419,0.2254053,102060.0,102050.0,16.21749137]
[1747307739286,0.23520345,102060.0,102050.0,16.22729]
[1747307739485,0.02944215,102060.0,102050.0,16.23708854]
[1747307739743,0.23520345,102060.0,102050.0,16.23708854]
[1747307740498,0.01964351,102060.0,102050.0,16.51865902]
[1747307740714,0.23520277,102060.0,102050.0,16.51865902]
[1747307740926,0.22540462,102060.0,102050.0,16.50886058]
[1747307741140,0.22540462,102060.0,102050.0,16.49236058]
[1747307741355,0.22540462,102060.0,102050.0,16.51755902]
[1747307741587,0.03923953,102060.0,102050.0,16.51755902]
[1747307741825,0.24500083,102060.0,102050.0,16.51755902]
[1747307742243,0.02944147,102060.0,102050.0,16.51755902]
[1747307742433,0.03923953,102060.0,102050.0,16.51755902]
[1747307743302,0.23520268,102060.0,102050.0,16.23598787]
[1747307743512,0.23520268,102060.0,102050.0,16.51755902]
[1747307743928,0.03923953,102060.0,102050.0,16.51755902]
[1747307744573,0.02944147,102060.0,102050.0,16.51755902]
[1747307745426,0.02944137,102060.0,102050.0,16.51755902]
[1747307748027,4.846e-05,102060.0,102050.0,16.61486842]
[1747307748529,4.846e-05,102060.0,102050.0,16.89643957]
[1747307749376,4.846e-05,102060.0,102050.0,16.61486743]
[1747307749665,4.846e-05,102060.0,102050.0,16.61486742]
[1747307749905,4.846e-05,102060.0,102050.0,16.60674552]
[1747307750117,0.00984584,102060.0,102050.0,16.61074552]
[1747307750327,4.846e-05,102060.0,102050.0,16.61574552]
[1747307750540,4.846e-05,102060.0,102050.0,16.62186745]
[1747307752982,4.846e-05,102060.0,102050.0,16.9034386]
[1747307753432,0.33059928,102100.0,102090.0,0.22529024]
[1747307753657,0.10470564,102100.0,102090.0,0.60417079]
[1747307753871,0.10707799,102100.0,102090.0,0.61029272]
[1747307754082,0.11687192,102100.0,102090.0,0.61029272]
[1747307754294,0.32255252,102100.0,102090.0,0.60049812]
[1747307754499,0.0285658,102100.0,102090.0,0.62483357]
[1747307754714,0.02942966,102100.0,102090.0,0.64113357]
[1747307754894,0.02163573,102100.0,102090.0,0.73844297]
[1747307755163,0.05101762,102100.0,102090.0,0.76373782]
[1747307755379,0.05101839,102100.0,102090.0,0.76373782]
[1747307755810,0.05101839,102100.0,102090.0,0.74803782]
[1747307756027,0.05101839,102100.0,102090.0,0.74803775]
[1747307756241,0.03143005,102100.0,102090.0,0.74803747]
[1747307756672,0.00204864,102100.0,102090.0,0.46646632]
[1747307756905,0.01963611,102100.0,102090.0,0.80846632]
[1747307757124,0.01963611,102100.0,102090.0,0.81046632]
[1747307757350,4.864e-05,102100.0,102090.0,1.10813747]
[1747307757782,0.00984209,102100.0,102090.0,1.10813747]
[1747307757984,0.01963583,102100.0,102090.0,1.10813747]
[1747307758218,0.01963583,102100.0,102090.0,1.12256454]
[1747307758433,0.36942966,102100.0,102090.0,0.17980887]
[1747307758661,0.35963583,102100.0,102090.0,0.40705773]
[1747307758872,0.35963573,102100.0,102090.0,0.40509911]
[1747307759082,0.36942956,102100.0,102090.0,0.40509911]
[1747307759292,0.35963573,102100.0,102090.0,0.41501589]
[1747307759512,0.34984209,102100.0,102090.0,0.41501589]
[1747307759725,0.35963573,102100.0,102090.0,0.41501589]
[1747307759972,0.36942956,102100.0,102090.0,0.41501589]
[1747307760182,0.34004864,102100.0,102090.0,0.51232529]
[1747307760398,0.34984209,102100.0,102090.0,0.52686614]
[1747307761510,0.34984209,102100.0,102090.0,0.37231241]
[1747307761723,0.38532947,102100.0,102090.0,0.35621241]
[1747307761931,0.3951235,102100.0,102090.0,0.35621241]
[1747307762516,0.3951235,102100.0,102090.0,0.26417494]
[1747307762720,0.0551235,102100.0,102090.0,0.26417494]
[1747307762977,0.04532947,102100.0,102090.0,0.34348113]
[1747307763356,0.0551234,102100.0,102090.0,0.62505228]
[1747307763780,0.257417,102100.0,102090.0,0.2300446]
[1747307763982,0.257417,102100.0,102090.0,0.24963467]
[1747307764389,0.24762317,102100.0,102090.0,0.01442707]
[1747307764600,0.22162071,102080.0,102070.0,0.60524396]
[1747307764802,0.06148813,102080.0,102070.0,0.63463468]
[1747307765011,0.24761675,102080.0,102070.0,0.76597452]
[1747307765213,0.24761675,102080.0,102070.0,0.61493703]
[1747307765427,0.24761675,102080.0,102070.0,0.63453122]
[1747307765637,0.2378208,102080.0,102070.0,0.00969307]
[1747307765850,0.23764096,102070.0,102060.0,0.2057613]
[1747307766049,0.23764096,102070.0,102060.0,0.23497663]
[1747307766279,0.23764096,102070.0,102060.0,0.25457216]
[1747307766677,0.23764096,102070.0,102060.0,0.24477449]
[1747307766909,0.23764096,102070.0,102060.0,0.23023364]
[1747307767320,0.23764096,102070.0,102060.0,0.23323364]
[1747307767787,0.23764096,102070.0,102060.0,0.2428036]
[1747307768392,0.23764096,102070.0,102060.0,0.340113]
[1747307768622,0.23764096,102070.0,102060.0,0.32643852]
[1747307768860,0.23764096,102070.0,102060.0,0.3362361]
[1747307769076,0.02939014,102070.0,102060.0,0.62760473]
[1747307769444,0.24031298,102080.0,102070.0,0.20574115]
[1747307769662,0.23051713,102080.0,102070.0,0.20574115]
[1747307770469,0.23051713,102080.0,102070.0,0.21553825]
[1747307771040,0.23051713,102080.0,102070.0,0.22633525]
[1747307771222,0.21551713,102080.0,102070.0,0.28357958]
[1747307771448,0.21551713,102080.0,102070.0,0.29337649]
[1747307771934,0.21651713,102080.0,102070.0,0.29337649]
[1747307772136,0.23191713,102080.0,102070.0,0.29337649]
[1747307776774,0.21651675,102080.0,102070.0,0.30791734]
[1747307776986,0.22631298,102080.0,102070.0,0.31771405]
[1747307780900,0.22631298,102080.0,102070.0,0.32383627]
[1747307781330,0.22631298,102080.0,102070.0,0.31403956]
[1747307781550,0.21651713,102080.0,102070.0,0.31403956]
[1747307781762,0.23211713,102080.0,102070.0,0.31403956]
[1747307781975,0.23211713,102080.0,102070.0,0.00712222]
[1747307781976,0.23862099,102080.0,102070.0,0.00712222]
[1747307782179,0.22882476,102080.0,102070.0,0.0090814]
[1747307782394,0.04269604,102080.0,102070.0,0.21286328]
[1747307782612,0.23610892,102080.0,102070.0,0.25679437]
[1747307782822,0.02059179,102080.0,102070.0,0.34249945]
[1747307783025,0.001,102080.0,102070.0,0.72138]
[1747307783233,0.001,102080.0,102070.0,0.75388]
[1747307784029,0.01079547,102080.0,102070.0,0.75388]
[1747307784813,0.02059113,102080.0,102070.0,0.75388]
[1747307787110,0.001,102080.0,102070.0,0.75388]
[1747307787318,0.01079537,102080.0,102070.0,0.75388]
[1747307787738,0.001,102080.0,102070.0,0.75388]
[1747307788985,0.01079537,102080.0,102070.0,0.75388]
[1747307790237,0.001,102080.0,102070.0,0.75388]
[1747307790661,0.01079547,102080.0,102070.0,0.75388]
[1747307791067,0.01079537,102080.0,102070.0,0.75388]
[1747307791603,0.001,102080.0,102070.0,0.75388]
[1747307793515,0.01079537,102080.0,102070.0,0.75388]
[1747307793724,0.001,102080.0,102070.0,0.75388]
[1747307795449,0.01079537,102080.0,102070.0,0.75388]
[1747307795889,0.001,102080.0,102070.0,1.50318]
[1747307796837,0.01963592,102100.0,102090.0,0.23983109]
[1747307797028,0.01963592,102100.0,102090.0,0.57621743]
[1747307797487,0.01963573,102100.0,102090.0,0.57621743]
[1747307797680,0.02942947,102100.0,102090.0,0.57621743]
[1747307797930,0.02942947,102100.0,102090.0,0.57821743]
[1747307798351,0.02942947,102100.0,102090.0,0.57921743]
[1747307798983,0.00984209,102100.0,102090.0,0.57921743]
[1747307799197,4.864e-05,102100.0,102090.0,0.67652683]
[1747307799410,4.864e-05,102100.0,102090.0,0.70782683]
[1747307799942,0.00984219,102100.0,102090.0,0.70782683]
[1747307800773,0.00984219,102100.0,102090.0,0.69252683]
[1747307800987,0.01963593,102100.0,102090.0,0.69252683]
[1747307801163,0.01963593,102100.0,102090.0,0.67652683]
[1747307801601,0.00984219,102100.0,102090.0,0.67652683]
[1747307801761,0.22222857,102100.0,102090.0,0.33646811]
[1747307801962,0.25161074,102100.0,102090.0,0.33646811]
[1747307802176,0.04593014,102100.0,102090.0,0.34626271]
[1747307802378,0.02634219,102100.0,102090.0,0.34626271]
[1747307802581,0.01963602,102100.0,102090.0,0.70647903]
[1747307802778,0.04523014,102100.0,102090.0,0.70647903]
[1747307802982,0.26671074,102100.0,102090.0,0.31780398]
[1747307803183,0.26671074,102100.0,102090.0,0.2489537]
[1747307803633,0.26671074,102100.0,102090.0,0.25874849]
[1747307804198,0.27650505,102100.0,102090.0,0.25874849]
[1747307804595,0.2667115,102100.0,102090.0,0.23915881]
[1747307804794,0.2667115,102100.0,102090.0,0.2489536]
[1747307805000,0.2667115,102100.0,102090.0,0.2587483]
[1747307806496,0.2667115,102100.0,102090.0,0.26873493]
[1747307808256,4.864e-05,102100.0,102090.0,0.65741008]
[1747307808457,0.01963602,102100.0,102090.0,0.65741008]
[1747307808656,4.864e-05,102100.0,102090.0,0.65741008]
[1747307808836,0.01963564,102100.0,102090.0,0.65741008]
[1747307809462,0.01963564,102100.0,102090.0,0.74583183]
[1747307809635,0.02942947,102100.0,102090.0,0.74583183]
[1747307810043,0.02942938,102100.0,102090.0,0.74583183]
[1747307811746,0.04901733,102100.0,102090.0,0.46426068]
[1747307811951,0.04901724,102100.0,102090.0,0.74583183]
[1747307812163,0.04901791,102100.0,102090.0,0.74583183]
[1747307813055,0.04901791,102100.0,102090.0,0.46426068]
[1747307813675,0.27620505,102100.0,102090.0,0.1309591]
[1747307813881,0.24682345,102100.0,102090.0,0.00912222]
[1747307814089,0.64442345,102100.0,102090.0,0.00912222]
[1747307814519,1.08173285,102100.0,102090.0,0.00912222]
[1747307814746,1.08173285,102100.0,102090.0,0.003]
[1747307814953,1.17904225,102100.0,102090.0,0.003]
[1747307815583,1.17904225,102100.0,102090.0,0.001]
[1747307816048,1.18004225,102100.0,102090.0,0.001]
[1747307817207,0.24783767,102070.0,102060.0,0.0994451]
[1747307817419,0.24783767,102070.0,102060.0,0.09748596]
[1747307817631,0.24783767,102070.0,102060.0,0.1036082]
[1747307818491,0.24783767,102070.0,102060.0,0.1056082]
[1747307818701,0.24783767,102070.0,102060.0,0.03532846]
[1747307819950,0.24783767,102070.0,102060.0,0.13263786]
[1747307820375,0.25763449,102070.0,102060.0,0.34035839]
[1747307820617,0.23123787,102070.0,102060.0,0.35799432]
[1747307820796,0.24103506,102070.0,102060.0,0.35799451]
[1747307821006,0.24103506,102070.0,102060.0,0.34819703]
[1747307821201,0.23123815,102070.0,102060.0,0.34819703]
[1747307821651,0.23123815,102070.0,102060.0,0.33839907]
[1747307821881,0.22144115,102070.0,102060.0,0.33839907]
[1747307822270,0.22144115,102070.0,102060.0,0.34819703]
[1747307822481,0.22144115,102070.0,102060.0,0.35799489]
[1747307822685,0.22144115,102070.0,102060.0,0.34819703]
[1747307822899,0.22144115,102070.0,102060.0,0.25088763]
[1747307823742,0.21553806,102070.0,102060.0,0.2606853]
[1747307823962,0.21553806,102070.0,102060.0,0.54225655]
[1747307824185,0.23053806,102070.0,102060.0,0.53245878]
[1747307824393,0.23053806,102070.0,102060.0,0.25088763]
[1747307824643,0.22074115,102070.0,102060.0,0.34819703]
[1747307824850,0.22074115,102070.0,102060.0,0.25088763]
[1747307825443,0.21234204,102080.0,102070.0,0.19594396]
[1747307825656,0.03918696,102070.0,102060.0,0.55205403]
[1747307825849,0.03918657,102070.0,102060.0,0.55205403]
[1747307826088,0.02938966,102070.0,102060.0,0.55205403]
[1747307826308,0.02938966,102070.0,102060.0,0.64936343]
[1747307826523,0.02938966,102070.0,102060.0,0.64636343]
[1747307826791,0.0161,102080.0,102070.0,0.25167205]
[1747307827029,0.64377598,102090.0,102080.0,0.21551675]
[1747307827218,0.00979566,102080.0,102070.0,0.51464949]
[1747307827442,0.00979566,102080.0,102070.0,0.29911919]
[1747307827443,0.0195917,102080.0,102070.0,0.29911919]
[1747307827615,0.03918379,102080.0,102070.0,0.29544435]
[1747307827835,0.04897935,102080.0,102070.0,0.30524087]
[1747307828275,0.01959122,102080.0,102070.0,0.30524087]
[1747307828467,0.03918301,102080.0,102070.0,0.30424087]
[1747307829558,0.03918292,102080.0,102070.0,0.30424087]
[1747307829773,0.03918292,102080.0,102070.0,0.30624087]
[1747307830694,0.04897896,102080.0,102070.0,0.30624087]
[1747307831823,0.02938697,102080.0,102070.0,0.30624087]
[1747307832033,0.02938717,102080.0,102070.0,0.32154087]
[1747307832228,0.02938707,102080.0,102070.0,0.33664087]
[1747307832455,0.02938707,102080.0,102070.0,0.61821202]
[1747307832685,0.03918311,102080.0,102070.0,0.61821202]
[1747307833242,0.03918311,102080.0,102070.0,0.60311202]
[1747307833454,0.01959122,102080.0,102070.0,0.60311202]
[1747307833667,0.23680118,102090.0,102080.0,0.2300574]
[1747307833881,0.24659617,102090.0,102080.0,0.31330947]